Cogmind - Beta 12 @@@ ROGUE MODE // 2023.11.26 @ 12:13:36 Player: Tim Result: Destroyed by L-31 Rogue with Katana Performance ------------- Evolutions (1) 500 Regions Visited (3) 600 Robots Destroyed (37) 185 Value Destroyed (843) 843 Prototype IDs (0) 0 Alien Tech Used (0) 0 Bonus (0) 0 TOTAL SCORE: 2128 Bonus ------- None Cogmind --------- Core Integrity 0/400 Matter 300/300 Energy 88/100 System Corruption 0% Temperature Cool (0) Movement Hovering (156) Ox1 Location -9/Storage Parts ------- > --- POWER (1) -------- (None) > --- PROPULSION (3) --- Backup Propulsion I Backup Propulsion I > --- UTILITY (3) ------ Large Storage Unit Signal Interpreter > --- WEAPON (2) ------- Backup Laser I Backup Laser I > --- INVENTORY (15) --- Backup Power I Improved Heat Sink Large Storage Unit Terrain Scanner Seismic Detector Medium Laser Small Laser Light EM Pulse Cannon Light EM Pulse Cannon Light EM Pulse Cannon Datajack Peak State ------------ > --- POWER ------------ Light Ion Engine > --- PROPULSION ------- Aluminum Leg Aluminum Leg Aluminum Leg > --- UTILITY ---------- Large Storage Unit Sensor Array Signal Interpreter > --- WEAPON ----------- Light EM Pulse Cannon Light Assault Rifle > --- INVENTORY -------- Aluminum Leg Aluminum Leg Improved Heat Sink Small Storage Unit Medium Storage Unit Large Storage Unit Terrain Scanner Seismic Detector Medium Laser Light EM Pulse Cannon Light EM Pulse Cannon Light EM Pulse Cannon Light Assault Rifle Light Assault Rifle Datajack [Rating: 12] Favorites ----------- Power Ion Engine Engine Ion Engine Propulsion Aluminum Leg Leg Aluminum Leg Hover Unit Backup Propulsion I Utility Large Storage Unit Device Sensor Array Storage Large Storage Unit Processor Signal Interpreter Weapon Medium Laser Energy Gun Medium Laser Energy Cannon Light EM Pulse Cannon Ballistic Gun Light Assault Rifle Build | -11 -10 -9 -9 ------- Run | Jun Mat Mat Sto Slots Evolved 2 | . . 2 . Power . | . . . . Propulsion 1 | . . 1 . Utility 1 | . . 1 . Weapon . | . . . . Parts Attached 48 | 9 12 26 1 Power 9 | 3 1 5 . Engine 9 | 3 1 5 . Core . | . . . . Reactor . | . . . . Propulsion 18 | 2 6 9 1 Treads . | . . . . Leg 16 | 2 6 8 . Wheel . | . . . . Hover 2 | . . 1 1 Flight . | . . . . Utility 9 | 2 4 3 . Device 4 | 1 1 2 . Storage 4 | 1 3 . . Processor 1 | . . 1 . Hackware . | . . . . Protection . | . . . . Artifact . | . . . . Weapon 12 | 2 1 9 . Energy Gun 2 | 1 . 1 . Energy Cannon 4 | . . 4 . Ballistic Gun 6 | 1 1 4 . Ballistic Cannon . | . . . . Launcher . | . . . . Special Weapon . | . . . . Impact Weapon . | . . . . Slashing Weapon . | . . . . Piercing Weapon . | . . . . Special Melee Weapon . | . . . . Unidentified Prototypes . | . . . . Parts Lost 16 | . . 14 2 Power 4 | . . 3 1 Propulsion 7 | . . 6 1 Utility 1 | . . 1 . Weapon 4 | . . 4 . Highest Loss Streak 5 | . . 5 2 To Critical Strikes . | . . . . Average Slot Usage (%) 91 | . 100 82 83 Engine 10 | . 14 7 8 Leg 22 | . 28 19 . Hover 2 | . . 2 30 Device 11 | . 14 9 . Storage 12 | . 14 11 11 Processor 5 | . . 11 11 Energy Gun 9 | . 14 5 22 Energy Cannon 2 | . . 4 . Ballistic Gun 12 | . 14 11 . Naked Turns . | . . . . Heaviest Build 32 | 15 30 32 23 Greatest Support 30 | 20 20 30 18 Greatest Overweight (x) 8 | . 2 8 1 Average Overweight (x) . | . . 1 1 Largest Inventory Capacity 15 | 8 15 15 15 Average Capacity 14 | 7 14 15 15 Most Carried 15 | 5 15 15 11 Average Carried 11 | 2 12 11 11 Final Capacity 15 | 8 15 15 15 Final Carried 14 | 2 14 12 11 Class Distribution -------------------- 71% | Mutant 28% | Scavenger-Mutant Dominant Class ---------------- Mutant | -10/Materials Scavenger-Mutant | -9/Materials Mutant | -9/Storage Resources | -11 -10 -9 -9 ----------- Run | Jun Mat Mat Sto Matter Collected 850 | 300 222 328 . Remotely . | . . . . Salvage Created 1242 | 145 421 676 . Parts 77 | 10 34 33 . Haulers Intercepted . | . . . . Recyclers Shooed 2 | . 2 . . Parts Field Recycled . | . . . . Retrieved Matter . | . . . . Parts Self-Destructed . | . . . . Prevented . | . . . . Kills | -11 -10 -9 -9 ------- Run | Jun Mat Mat Sto Combat Hostiles Destroyed 30 | . 13 17 . Guns 28 | . 13 15 . Cannons 2 | . . 2 . Classes Destroyed 6 | 2 3 1 . Tunneler 3 | 3 . . . Recycler 2 | 1 . 1 . Watcher 2 | . 2 . . Swarmer 13 | . 6 7 . Grunt 13 | . 7 6 . Sentry 4 | . . 4 . Best Kill Streak 4 | 4 4 3 . Combat Bots Only 4 | . 4 3 . Max Kills in Single Turn 2 | 1 1 2 . Gunslinging . | . . . . Exploded . | . . . . Melee . | . . . . Uniques/NPCs Destroyed . | . . . . Combat | -11 -10 -9 -9 -------- Run | Jun Mat Mat Sto Damage Taken 2126 | . 482 1509 135 Core 482 | . 77 338 67 Absorbed by Shields . | . . . . Core Remaining (%) 84 | 100 69 . . Volleys Fired 135 | 9 35 88 3 Largest 2 | 2 2 2 2 Hottest 112 | 70 70 112 60 Shots Fired 238 | 18 70 144 6 Gun 228 | 18 70 134 6 Cannon 10 | . . 10 . Launcher . | . . . . Special . | . . . . Kinetic 144 | 9 35 100 . Thermal 84 | 9 35 34 6 Explosive . | . . . . Electromagnetic 10 | . . 10 . Robot Hit Streak 19 | 6 12 19 5 Robot Miss Streak 5 | 2 3 5 2 Penetration Max . | . . . . Secondary Targets 4 | . 3 1 . Max Gunslinging Chain 1 | . 1 1 . Shots Hit Robots 153 | 9 47 93 4 Core Hits 67 | 5 26 34 2 Critical Kills . | . . . . Critical Parts Destroyed 1 | . . 1 . Critical Strikes 4 | . 2 2 . Burn 3 | . 2 1 . Destroy 1 | . . 1 . Melee Attacks . | . . . . Impact . | . . . . Slashing . | . . . . Piercing . | . . . . Sneak Attacks . | . . . . Combat Hostiles . | . . . . Follow-up Attacks . | . . . . Damage Inflicted 1721 | 110 607 967 37 Guns 1535 | 110 599 789 37 Cannons 145 | . . 145 . Explosions 33 | . . 33 . Melee . | . . . . Ramming 8 | . 8 . . Kinetic 920 | 35 335 550 . Thermal 648 | 75 264 272 37 Explosive . | . . . . Electromagnetic 145 | . . 145 . Impact . | . . . . Slashing . | . . . . Piercing . | . . . . Highest Corruption . | . . . . Average Corruption . | . . . . Corruption Purged . | . . . . Corruption Blocked . | . . . . Overload Shots . | . . . . Overflow Damage . | . . . . Projectiles . | . . . . Explosions . | . . . . Melee . | . . . . Knockbacks 1 | . 1 . . Impact 1 | . 1 . . Kinetic . | . . . . Secondary . | . . . . Self-Inflicted Damage . | . . . . Shots . | . . . . Rammed . | . . . . Targets Rammed 2 | . 2 . . Kicked 2 | . 2 . . Crushed . | . . . . Highest Temperature 129 | 54 129 49 . Average Temperature 32 | 23 43 13 . Received Heat Transfer 738 | . 171 567 . Siege Activations . | . . . . Robots Corrupted . | . . . . Combat Hostiles . | . . . . Parts Fried 1 | . . 1 . Impact Corruptions . | . . . . Robots Melted . | . . . . Combat Hostiles . | . . . . Parts Melted 5 | 1 2 2 . Heat Transferred 2146 | 222 925 851 148 Parts Sabotaged . | . . . . Parts Stolen . | . . . . Parts Stripped . | . . . . Power Chain Reactions 1 | . . 1 . Missiles Intercepted . | . . . . Alert | -11 -10 -9 -9 ------- Run | Jun Mat Mat Sto Peak Influence 290 | 20 243 290 93 Initial 78 | . 13 11 78 Average 113 | 10 91 153 82 Maximum Alert Level 1 | . 1 1 . Low Security (%) 79 | 100 83 71 100 Level 1 20 | . 16 28 . Level 2 . | . . . . Level 3 . | . . . . Level 4 . | . . . . Level 5 . | . . . . High Security . | . . . . Max Security . | . . . . Squads Dispatched 5 | . 2 3 . Investigation 2 | . 1 1 . Extermination . | . . . . Reinforcement 3 | . 1 2 . Assault . | . . . . Garrison . | . . . . Intercept . | . . . . Searches Triggered . | . . . . Construction Impeded . | . . . . Haulers Reinforced . | . . . . Active Scanning Responses . | . . . . Cargo Convoy Interrupts . | . . . . Stealth | -11 -10 -9 -9 --------- Run | Jun Mat Mat Sto Distress Signals 5 | . 2 3 . Communications Jammed . | . . . . Distress Signals . | . . . . Times Spotted 59 | . 21 36 2 Peak Tracking Total 7 | . 6 7 2 Tactical Retreats 7 | . 1 6 . Traps | -11 -10 -9 -9 ------- Run | Jun Mat Mat Sto Traps Triggered 2 | . 2 . . Indirectly . | . . . . Trap Hack Attempts . | . . . . Triggered . | . . . . Disarmed . | . . . . Reprogrammed . | . . . . Reused . | . . . . Traps Extracted . | . . . . Installed . | . . . . Triggered . | . . . . Machines | -11 -10 -9 -9 ---------- Run | Jun Mat Mat Sto Machines Disabled . | . . . . Max in Single Turn . | . . . . Machines Repaired . | . . . . Machines Sabotaged . | . . . . Overloaded Fab Kills . | . . . . Hacking | -11 -10 -9 -9 --------- Run | Jun Mat Mat Sto Machines Accessed 12 | . 6 6 . Terminals 9 | . 6 3 . Fabricators . | . . . . Repair Stations 2 | . . 2 . Recycling Units 1 | . . 1 . Scanalyzers . | . . . . Garrison Access . | . . . . Total Hacks 34 | . 16 18 . Successful 19 | . 9 10 . Failed 15 | . 7 8 . Catastrophic 3 | . 1 2 . Database Lockouts . | . . . . Manual . | . . . . Terminals 25 | . 16 9 . Fabricators . | . . . . Repair Stations 6 | . . 6 . Recycling Units 3 | . . 3 . Scanalyzers . | . . . . Garrison Access . | . . . . Terminal Hacks 16 | . 9 7 . Branch Access Points 2 | . 1 1 . Terminal Index 1 | . 1 . . Alert Level 2 | . 1 1 . Unreport Threat 2 | . 1 1 . Locate Traps 2 | . 1 1 . Dispatch Records 1 | . 1 . . Patrol Status 1 | . 1 . . Reinforcement Status 1 | . 1 . . Recall Investigation 1 | . . 1 . Recall Reinforcements 1 | . . 1 . Hauler Manifests 1 | . 1 . . Zone Layout 1 | . . 1 . Fabricator Hacks . | . . . . Repair Station Hacks 2 | . . 2 . Refit 2 | . . 2 . Recycling Unit Hacks 1 | . . 1 . Report Inventory 1 | . . 1 . Scanalyzer . | . . . . Garrison Access Hacks . | . . . . Unauthorized Hacks . | . . . . Terminals . | . . . . Fabricators . | . . . . Repair Stations . | . . . . Recycling Units . | . . . . Scanalyzers . | . . . . Garrison Access . | . . . . Data Cores Recovered . | . . . . Used . | . . . . Hacking Detections 7 | . 5 2 . Full Trace Events 2 | . 1 1 . Feedback Events . | . . . . Feedback Blocked . | . . . . Robot Schematics Acquired . | . . . . Robots Built . | . . . . Authchips . | . . . . Time . | . . . . Total Robot Build Rating . | . . . . Part Schematics Acquired . | . . . . Parts Built . | . . . . Authchips . | . . . . Time . | . . . . Total Part Build Rating . | . . . . Parts Repaired . | . . . . Time . | . . . . Parts Recycled . | . . . . Recycled Matter . | . . . . Retrieved Matter . | . . . . Retrieved Components . | . . . . Parts Scanalyzed . | . . . . Part Schematics Acquired . | . . . . Parts Damaged . | . . . . Bothacking | -11 -10 -9 -9 ------------ Run | Jun Mat Mat Sto Used RIF Installer . | . . . . Robots Hacked . | . . . . Non-combat . | . . . . Combat . | . . . . Robot Hacks Applied . | . . . . Relay Couplers Released . | . . . . Fabnet Peak Effective % . | . . . . Robots Rewired . | . . . . Allies Hacked . | . . . . Hacks Repelled . | . . . . Allies | -11 -10 -9 -9 -------- Run | Jun Mat Mat Sto Total Allies . | . . . . Largest Group . | . . . . Highest-Rated Group . | . . . . Highest-Rated Ally . | . . . . Total Orders . | . . . . Ally Attacks . | . . . . Total Damage . | . . . . Kills . | . . . . Allies Corrupted . | . . . . Allies Melted . | . . . . Intel | -11 -10 -9 -9 ------- Run | Jun Mat Mat Sto Robot Analysis Total . | . . . . Derelict Logs Recovered . | . . . . Drone Launches . | . . . . Drone Recoveries . | . . . . Exploration | -11 -10 -9 -9 ------------- Run | Jun Mat Mat Sto Turns Passed 1930 | 136 860 891 43 Spaces Moved 719 | 70 300 327 22 Core 48 | 11 . 37 . Treads . | . . . . Legs 600 | 59 300 241 . Wheels . | . . . . Hover 71 | . . 49 22 Flight . | . . . . Fastest Speed 50 | 50 120 120 152 Average Speed 171 | 109 181 175 152 Slowest Speed 450 | 120 260 450 152 Overloaded Moves . | . . . . Propulsion Burnouts . | . . . . Robots Hopped . | . . . . Cave-ins Triggered . | . . . . Exploration Rate (%) 27 | 5 58 38 10 Regions Visited 3 Branch Regions 1 Pre-discovered Areas . | . . . . Known Exits Taken 1 | . . 1 . Unknown Exits Taken 2 | 1 1 . . Scrap Searched . | . . . . Spaces Dug . | . . . . Terrain Destroyed 3 | . . 3 . Melee . | . . . . Projectile . | . . . . AOE 3 | . . 3 . Terrain Rammed . | . . . . Walls Destroyed . | . . . . Machines Disabled . | . . . . Actions | -11 -10 -9 -9 --------- Run | Jun Mat Mat Sto Total 1199 | 109 542 522 26 Wait 253 | 15 176 62 . Move 716 | 69 299 326 22 Hop . | . . . . Pick Up 24 | 5 13 6 . Fast Attach 6 | 6 . . . Attach 17 | 3 . 13 1 Detach 7 | . . 7 . Swap 25 | . 12 13 . Drop 14 | 2 5 7 . Fire 135 | 9 35 88 3 Melee . | . . . . Ram . | . . . . Kick 2 | . 2 . . Crush . | . . . . Escape Stasis . | . . . . Rewire . | . . . . Trap . | . . . . Miscellaneous . | . . . . Route ------- -11/Junkyard -10/Materials (discovered 2 exits: *Mat / *Min) -9/Materials (discovered 3 exits: *Min x2 / *Sto) -9/Storage History --------- Turn | Location | Event 57 | -11/Junkyard | Discovered new exit (range 16) 137 | -11/Junkyard | Entered Materials 180 | -10/Materials | Identified exit to Mines 316 | -10/Materials | Build established: Mutant 968 | -10/Materials | Discovered new exit (range 13) 997 | -10/Materials | Entered another Materials area 997 | -9/Materials | Evolved 2 slots: Propulsion x1, Utility x1 1294 | -9/Materials | Build established: Scavenger-Mutant 1312 | -9/Materials | Identified exit to Mines 1312 | -9/Materials | Identified exit to Storage 1478 | -9/Materials | Lost 5 parts (1p3n1u) 1563 | -9/Materials | Core integrity fell below 50% 1584 | -9/Materials | Lost 5 parts (1p2n2w) 1629 | -9/Materials | Core integrity fell below 20% 1853 | -9/Materials | Build established: Mutant 1888 | -9/Materials | Entered Storage 1931 | -9/Storage | Destroyed by L-31 Rogue with Katana Last Messages --------------- 01789_ U-05 Engineer lays Concrete. 01819_ Connecting with Repair Station... >>Refit Scanning configuration... Attaching: Backup Power I x1 Backup Propulsion I x2 Backup Laser I x2 01822_ ALERT: Suspicious activity at Repair Station M002. Dispatching Investigation squad. 01846_ Backup Propulsion I destroyed. 01848_ Ion Engine melted. 01848_ G-34 Mercenary destroyed. 01853_ Acquired 5 matter. 01859_ Acquired Sml. Laser. 01868_ R-06 Scavenger collects Heat Sink. LOCATION=STORAGE GOAL=ESCAPE 01913_ K-01 Serf collects debris. 01926_ Backup Power I destroyed. 01929_ Backup Propulsion I destroyed. Map ----- +----------------------------------------------------+ | | | | | | | | | | | | | | | | | ???????????????????????????????????????????????? | | ???????????????????????????????????????????????? | | ???????????????????????????????????????????????? | | ??????????????####################?????????????? | | ????????????? #?????????????? | | ????????????? #?????????????? | | ????????????? #?????????????? | | ???????????????????#####+##+######?????????????? | | ???????????????????????# #??????????????? | | ???????????????????????#! #??????????????? | | ???????????????????????# #??????????????? | | ???????????????????????# """"#??????????????? | | ???????????????????????# """"#??????????????? | | ???????????????????????# """"#??????????????? | | ???????????????????????# """"#??????????????? | | ???????????????????????# #??????????????? | | ???????????????????????# #??????????????? | | ???????????????????????##@#######??????????????? | | ????????????????????????#l#????????????????????? | | ????????????????????????# #????????????????????? | | ????????????????????????# #????????????????????? | | ??????????????????????? ???????????????????? | | ????????????????????? +??????????????????? | | ??????????????????? #??????????????????? | | ????????????????? #??????????????????? | | ???????????????"""" """"" #??????????????????? | | ????????????????""" """"" #??????????????????? | | ????????????????""" """"" #??????????????????? | | ???????????????? #??????????????????? | | ???????????????? ????? ??????????????????? | | ???????????????? ???????? ??????????????????? | | ??????????????? ?????????? ??????????????????? | | ?????????????????????????? ?????????????????? | | ??????????????????????????? ?????????????????? | | ??????????????????????????? ?????????????????? | | ??????????????????????????? ???????????????????? | | ???????????????????????????????????????????????? | | ???????????????????????????????????????????????? | | ???????????????????????????????????????????????? | | ???????????????????????????????????????????????? | | ???????????????????????????????????????????????? | | ???????????????????????????????????????????????? | +----------------------------------------------------+ Best States ------------- Heat Dissipation 42 Energy Generation 12 Energy Capacity 265 Matter Stores 300 Matter Capacity 300 Sight Range 16 Robot Scan Range 14 Terrain Scan Density 10 Evasion (%) 55 Item Schematics ----------------- None Robot Schematics ------------------ None Fabricated ------------ Nothing Alien Tech Used ----------------- None Achievements -------------- None Challenges ------------ None Game ------ Seed FlakAuthchipFlail Manual? 0 Play Time 00:32:48 Cumulative 13.1 hours Start 2023.11.26 @ 11:40:25 End 2023.11.26 @ 12:13:36 Sessions 1 Manual Loads 0 Difficulty Rogue Special Mode None Game No. 32 Rogue 32 Adventurer 0 Explorer 0 Win Type - Total 0 Types 0/0/0/0/0/0/0/0/0 Lore% 18 Gallery% 14 Achievement% 9 Wizard Run 0 Options --------- ASCII 0 Keyboard 0 Movement Numpad Keybinds 0 Fullscreen 1 Font 24/Smallcaps Map View 113x50 Tactical HUD 1 Map Filters NONE Filters NONE Steam 1 RUN: ec4b2260-18c3-4252-9cf7-279f828a5e95